[Event "Titled Tuesday Blitz June 15 2021"]
[White "Ljukin, Sergei"]
[Black "Alavkin, Arseny"]
[WhiteFideId "14102200"]
[BlackFideId "4120612"]
[WhiteElo "2309"]
[BlackElo "2401"]
[Result "0-1"]
[Round "04"]
[TimeControl "180+1"]
[Date "2021.06.15"]
[WhiteClock "0:00:14"]
[BlackClock "0:01:08"]

1. e4 {[%clk 0:03:00]}  e6 {[%clk 0:02:50]} 2. d4 {[%clk 0:03:00]}  d5 {[%clk 0:02:49]} 3. Nc3 {[%clk 0:03:00]}  Bb4 {[%clk 0:02:48]} 4. e5 {[%clk 0:03:00]}  c5 {[%clk 0:02:48]} 5. a3 {[%clk 0:02:59]}  Bxc3+ {[%clk 0:02:48]} 6. bxc3 {[%clk 0:02:59]}  Qc7 {[%clk 0:02:47]} 7. Qg4 {[%clk 0:02:58]}  Ne7 {[%clk 0:02:47]} 8. Bd3 {[%clk 0:02:36]}  cxd4 {[%clk 0:02:35]} 9. Ne2 {[%clk 0:02:28]}  Nbc6 {[%clk 0:02:33]} 10. cxd4 {[%clk 0:02:23]}  Ng6 {[%clk 0:02:30]} 11. O-O {[%clk 0:02:16]}  Bd7 {[%clk 0:02:25]} 12. h4 {[%clk 0:02:15]}  O-O-O {[%clk 0:02:19]} 13. h5 {[%clk 0:02:14]}  Nge7 {[%clk 0:02:20]} 14. Qxg7 {[%clk 0:02:13]}  Rdf8 {[%clk 0:02:17]} 15. Bg5 {[%clk 0:01:58]}  Nf5 {[%clk 0:02:05]} 16. Bxf5 {[%clk 0:01:57]}  exf5 {[%clk 0:02:06]} 17. Bf6 {[%clk 0:01:57]}  Be6 {[%clk 0:02:04]} 18. c3 {[%clk 0:01:22]}  h6 {[%clk 0:01:57]} 19. Nf4 {[%clk 0:01:14]}  Qd7 {[%clk 0:01:52]} 20. Qg3 {[%clk 0:01:05]}  Rhg8 {[%clk 0:01:47]} 21. Qd3 {[%clk 0:00:56]}  Na5 {[%clk 0:01:40]} 22. a4 {[%clk 0:00:54]}  Nc4 {[%clk 0:01:39]} 23. Rfb1 {[%clk 0:00:54]}  b6 {[%clk 0:01:37]} 24. a5 {[%clk 0:00:49]}  b5 {[%clk 0:01:36]} 25. a6 {[%clk 0:00:47]}  Kc7 {[%clk 0:01:35]} 26. Rb4 {[%clk 0:00:33]}  Rb8 {[%clk 0:01:28]} 27. Rab1 {[%clk 0:00:32]}  Rb6 {[%clk 0:01:24]} 28. Qe2 {[%clk 0:00:22]}  Na3 {[%clk 0:01:19]} 29. Ra1 {[%clk 0:00:20]}  Nc4 {[%clk 0:01:18]} 30. Nd3 {[%clk 0:00:20]}  f4 {[%clk 0:01:09]} 31. Nxf4 {[%clk 0:00:18]}  Qc6 {[%clk 0:01:09]} 32. Nd3 {[%clk 0:00:17]}  Rxa6 {[%clk 0:01:09]} 33. Nc5 {[%clk 0:00:15]}  Rxa1+ {[%clk 0:01:08]} 34. Kh2 {[%clk 0:00:15]}  a5 {[%clk 0:01:08]} 35. Rb3 {[%clk 0:00:14]}  a4 {[%clk 0:01:08]} 36. Rb4 {[%clk 0:00:14]}  a3 {[%clk 0:01:08]} 0-1


[Site "https://www.chess.com"]

[Event "Titled Tuesday Blitz June 15 2021"]
[White "Lodici, Lorenzo"]
[Black "Terry, Renato"]
[WhiteFideId "884189"]
[BlackFideId "3803457"]
[WhiteElo "2577"]
[BlackElo "2989"]
[Result "1-0"]
[Round "04"]
[TimeControl "180+1"]
[Date "2021.06.15"]
[WhiteClock "0:00:07"]
[BlackClock "0:00:01"]

1. d4 {[%clk 0:03:00]}  e6 {[%clk 0:03:00]} 2. c4 {[%clk 0:03:00]}  Bb4+ {[%clk 0:02:59]} 3. Nd2 {[%clk 0:03:00]}  a5 {[%clk 0:02:58]} 4. e4 {[%clk 0:02:58]}  Nf6 {[%clk 0:02:51]} 5. Bd3 {[%clk 0:02:58]}  d5 {[%clk 0:02:50]} 6. cxd5 {[%clk 0:02:49]}  exd5 {[%clk 0:02:51]} 7. e5 {[%clk 0:02:50]}  Ne4 {[%clk 0:02:51]} 8. Ne2 {[%clk 0:02:37]}  c5 {[%clk 0:02:43]} 9. O-O {[%clk 0:02:35]}  Nxd2 {[%clk 0:02:26]} 10. Bxd2 {[%clk 0:02:32]}  c4 {[%clk 0:02:26]} 11. Bc2 {[%clk 0:02:28]}  Nc6 {[%clk 0:02:26]} 12. f4 {[%clk 0:02:26]}  f5 {[%clk 0:02:21]} 13. Be3 {[%clk 0:02:12]}  Be6 {[%clk 0:02:12]} 14. g4 {[%clk 0:02:12]}  g6 {[%clk 0:01:31]} 15. gxf5 {[%clk 0:01:44]}  Bxf5 {[%clk 0:01:16]} 16. Bxf5 {[%clk 0:01:43]}  gxf5 {[%clk 0:01:17]} 17. Ng3 {[%clk 0:01:43]}  Qh4 {[%clk 0:01:17]} 18. Qf3 {[%clk 0:01:32]}  Rg8 {[%clk 0:01:13]} 19. Kh1 {[%clk 0:01:20]}  Qh3 {[%clk 0:00:58]} 20. Nh5 {[%clk 0:00:45]}  Qxf3+ {[%clk 0:00:48]} 21. Rxf3 {[%clk 0:00:46]}  Be7 {[%clk 0:00:35]} 22. Rh3 {[%clk 0:00:45]}  Kd7 {[%clk 0:00:28]} 23. Ng3 {[%clk 0:00:45]}  Raf8 {[%clk 0:00:28]} 24. Rxh7 {[%clk 0:00:44]}  Rg6 {[%clk 0:00:21]} 25. Rg1 {[%clk 0:00:26]}  b5 {[%clk 0:00:19]} 26. Nh5 {[%clk 0:00:24]}  Rxg1+ {[%clk 0:00:18]} 27. Kxg1 {[%clk 0:00:25]}  b4 {[%clk 0:00:18]} 28. Kf2 {[%clk 0:00:25]}  c3 {[%clk 0:00:17]} 29. bxc3 {[%clk 0:00:24]}  bxc3 {[%clk 0:00:18]} 30. h4 {[%clk 0:00:20]}  Nb4 {[%clk 0:00:08]} 31. a4 {[%clk 0:00:20]}  c2 {[%clk 0:00:07]} 32. Ke2 {[%clk 0:00:08]}  Na2 {[%clk 0:00:07]} 33. Nf6+ {[%clk 0:00:08]}  Ke6 {[%clk 0:00:07]} 34. Nxd5 {[%clk 0:00:08]}  Kxd5 {[%clk 0:00:05]} 35. Rxe7 {[%clk 0:00:08]}  c1=Q {[%clk 0:00:03]} 36. Bxc1 {[%clk 0:00:07]}  Nxc1+ {[%clk 0:00:04]} 37. Ke3 {[%clk 0:00:08]}  Rd8 {[%clk 0:00:01]} 38. Rb7 {[%clk 0:00:05]}  Kc4 {[%clk 0:00:01]} 39. Rc7+ {[%clk 0:00:05]}  Kb4 {[%clk 0:00:01]} 40. Rxc1 {[%clk 0:00:06]}  Kxa4 {[%clk 0:00:02]} 41. Rd1 {[%clk 0:00:06]}  Kb4 {[%clk 0:00:01]} 42. d5 {[%clk 0:00:06]}  a4 {[%clk 0:00:02]} 43. d6 {[%clk 0:00:07]}  a3 {[%clk 0:00:03]} 44. e6 {[%clk 0:00:07]}  a2 {[%clk 0:00:03]} 45. d7 {[%clk 0:00:07]}  Rh8 {[%clk 0:00:01]} 46. Ra1 {[%clk 0:00:07]}  Kb3 {[%clk 0:00:01]} 47. Rxa2 {[%clk 0:00:07]} 1-0


[Site "https://www.chess.com"]

[Event "Titled Tuesday Blitz June 15 2021"]
[White "Macovei, Andrei"]
[Black "Drygalov, Sergey"]
[WhiteFideId "13904680"]
[BlackFideId "24171743"]
[WhiteElo "2439"]
[BlackElo "2514"]
[Result "1-0"]
[Round "04"]
[TimeControl "180+1"]
[Date "2021.06.15"]
[WhiteClock "0:00:18"]
[BlackClock "0:00:01"]

1. e4 {[%clk 0:03:00]}  c5 {[%clk 0:03:00]} 2. Nf3 {[%clk 0:02:49]}  e6 {[%clk 0:02:59]} 3. g3 {[%clk 0:02:48]}  b6 {[%clk 0:02:49]} 4. d4 {[%clk 0:02:47]}  Bb7 {[%clk 0:02:41]} 5. d5 {[%clk 0:02:44]}  g6 {[%clk 0:02:28]} 6. Bg2 {[%clk 0:02:41]}  Bg7 {[%clk 0:02:28]} 7. O-O {[%clk 0:02:42]}  Nf6 {[%clk 0:02:28]} 8. Re1 {[%clk 0:02:36]}  O-O {[%clk 0:02:27]} 9. c4 {[%clk 0:02:36]}  d6 {[%clk 0:02:19]} 10. Nc3 {[%clk 0:02:35]}  e5 {[%clk 0:02:14]} 11. a3 {[%clk 0:02:18]}  Nbd7 {[%clk 0:02:14]} 12. b4 {[%clk 0:02:17]}  Nh5 {[%clk 0:02:07]} 13. Bg5 {[%clk 0:02:11]}  f6 {[%clk 0:02:00]} 14. Be3 {[%clk 0:02:10]}  Qe7 {[%clk 0:01:37]} 15. Nb5 {[%clk 0:01:57]}  Rfc8 {[%clk 0:01:33]} 16. Qb3 {[%clk 0:01:51]}  Ba6 {[%clk 0:01:18]} 17. Bh3 {[%clk 0:01:46]}  Bxb5 {[%clk 0:01:12]} 18. cxb5 {[%clk 0:01:46]}  Rc7 {[%clk 0:01:07]} 19. Nd2 {[%clk 0:01:38]}  Bf8 {[%clk 0:00:59]} 20. Nc4 {[%clk 0:01:33]}  Ng7 {[%clk 0:00:58]} 21. Bxd7 {[%clk 0:01:30]}  Qxd7 {[%clk 0:00:55]} 22. bxc5 {[%clk 0:01:31]}  bxc5 {[%clk 0:00:54]} 23. a4 {[%clk 0:01:31]}  f5 {[%clk 0:00:46]} 24. f3 {[%clk 0:01:31]}  Nh5 {[%clk 0:00:42]} 25. Kg2 {[%clk 0:01:25]}  fxe4 {[%clk 0:00:34]} 26. fxe4 {[%clk 0:01:25]}  Qg4 {[%clk 0:00:34]} 27. Qc2 {[%clk 0:01:15]}  Nf6 {[%clk 0:00:19]} 28. Bd2 {[%clk 0:01:10]}  Rf7 {[%clk 0:00:17]} 29. Qd1 {[%clk 0:01:05]}  Qd7 {[%clk 0:00:16]} 30. Qe2 {[%clk 0:01:04]}  Be7 {[%clk 0:00:16]} 31. Rf1 {[%clk 0:01:04]}  Raf8 {[%clk 0:00:16]} 32. h3 {[%clk 0:01:00]}  Kg7 {[%clk 0:00:16]} 33. Rf3 {[%clk 0:00:56]}  Nh5 {[%clk 0:00:12]} 34. Raf1 {[%clk 0:00:54]}  Rxf3 {[%clk 0:00:12]} 35. Rxf3 {[%clk 0:00:55]}  Rxf3 {[%clk 0:00:09]} 36. Qxf3 {[%clk 0:00:56]}  a6 {[%clk 0:00:08]} 37. Qb3 {[%clk 0:00:52]}  axb5 {[%clk 0:00:07]} 38. axb5 {[%clk 0:00:53]}  Bd8 {[%clk 0:00:08]} 39. b6 {[%clk 0:00:53]}  Qb7 {[%clk 0:00:08]} 40. Qb5 {[%clk 0:00:49]}  Nf6 {[%clk 0:00:07]} 41. Kf3 {[%clk 0:00:46]}  h6 {[%clk 0:00:06]} 42. Ba5 {[%clk 0:00:29]}  Qf7 {[%clk 0:00:06]} 43. Ke3 {[%clk 0:00:28]}  Nh5 {[%clk 0:00:06]} 44. b7 {[%clk 0:00:22]}  Bg5+ {[%clk 0:00:06]} 45. Ke2 {[%clk 0:00:22]}  Nxg3+ {[%clk 0:00:06]} 46. Kd1 {[%clk 0:00:21]}  Qf3+ {[%clk 0:00:06]} 47. Kc2 {[%clk 0:00:21]}  Qxe4+ {[%clk 0:00:06]} 48. Kb3 {[%clk 0:00:21]}  Qb1+ {[%clk 0:00:05]} 49. Ka4 {[%clk 0:00:22]}  Qa2+ {[%clk 0:00:05]} 50. Na3 {[%clk 0:00:22]}  Bc1 {[%clk 0:00:05]} 51. Qb3 {[%clk 0:00:20]}  Qf2 {[%clk 0:00:03]} 52. b8=Q {[%clk 0:00:20]}  Qd4+ {[%clk 0:00:03]} 53. Kb5 {[%clk 0:00:19]}  Nf5 {[%clk 0:00:03]} 54. Ka6 {[%clk 0:00:19]}  Be3 {[%clk 0:00:02]} 55. Q3b7+ {[%clk 0:00:17]}  Kf6 {[%clk 0:00:03]} 56. Qd8+ {[%clk 0:00:17]}  Ne7 {[%clk 0:00:02]} 57. Qdxe7+ {[%clk 0:00:17]}  Kf5 {[%clk 0:00:01]} 58. Qe6+ {[%clk 0:00:18]}  Kf4 {[%clk 0:00:01]} 59. Qg4# {[%clk 0:00:18]} 1-0


[Site "https://www.chess.com"]

[Event "Titled Tuesday Blitz June 15 2021"]
[White "Maksimenko, Viktor"]
[Black "Jumabayev, Rinat"]
[WhiteFideId "13710478"]
[BlackFideId "13702661"]
[WhiteElo "2566"]
[BlackElo "2848"]
[Result "0-1"]
[Round "04"]
[TimeControl "180+1"]
[Date "2021.06.15"]
[WhiteClock "0:00:05"]
[BlackClock "0:00:14"]

1. d4 {[%clk 0:03:00]}  d6 {[%clk 0:02:59]} 2. e4 {[%clk 0:03:00]}  g6 {[%clk 0:02:59]} 3. Nc3 {[%clk 0:03:00]}  c6 {[%clk 0:03:00]} 4. a4 {[%clk 0:02:58]}  Bg7 {[%clk 0:02:57]} 5. g3 {[%clk 0:02:58]}  Nf6 {[%clk 0:02:54]} 6. Bg2 {[%clk 0:02:58]}  O-O {[%clk 0:02:54]} 7. Nge2 {[%clk 0:02:56]}  e5 {[%clk 0:02:51]} 8. O-O {[%clk 0:02:55]}  Qe7 {[%clk 0:02:48]} 9. h3 {[%clk 0:02:53]}  Re8 {[%clk 0:02:46]} 10. Be3 {[%clk 0:02:49]}  Na6 {[%clk 0:02:36]} 11. Qd2 {[%clk 0:02:44]}  Nb4 {[%clk 0:02:28]} 12. Rae1 {[%clk 0:02:25]}  b6 {[%clk 0:02:03]} 13. g4 {[%clk 0:01:58]}  Ba6 {[%clk 0:02:01]} 14. g5 {[%clk 0:01:27]}  Nh5 {[%clk 0:01:48]} 15. d5 {[%clk 0:01:26]}  cxd5 {[%clk 0:01:35]} 16. exd5 {[%clk 0:01:23]}  Nf4 {[%clk 0:01:22]} 17. Nb5 {[%clk 0:01:15]}  Nxg2 {[%clk 0:01:09]} 18. Kxg2 {[%clk 0:01:15]}  Nxd5 {[%clk 0:01:10]} 19. Ng3 {[%clk 0:00:59]}  Bb7 {[%clk 0:01:08]} 20. Kh2 {[%clk 0:01:00]}  Nxe3 {[%clk 0:00:59]} 21. fxe3 {[%clk 0:00:58]}  d5 {[%clk 0:00:55]} 22. h4 {[%clk 0:00:52]}  Rad8 {[%clk 0:00:53]} 23. Rf2 {[%clk 0:00:48]}  h6 {[%clk 0:00:39]} 24. Ref1 {[%clk 0:00:34]}  Rf8 {[%clk 0:00:39]} 25. Qe2 {[%clk 0:00:22]}  hxg5 {[%clk 0:00:38]} 26. h5 {[%clk 0:00:22]}  a6 {[%clk 0:00:22]} 27. Nc3 {[%clk 0:00:11]}  e4 {[%clk 0:00:23]} 28. Kg2 {[%clk 0:00:09]}  Be5 {[%clk 0:00:23]} 29. Qg4 {[%clk 0:00:09]}  Bc8 {[%clk 0:00:21]} 30. Qe2 {[%clk 0:00:08]}  f5 {[%clk 0:00:21]} 31. hxg6 {[%clk 0:00:08]}  f4 {[%clk 0:00:21]} 32. Ngxe4 {[%clk 0:00:07]}  dxe4 {[%clk 0:00:20]} 33. Nxe4 {[%clk 0:00:08]}  Bb7 {[%clk 0:00:20]} 34. Qh5 {[%clk 0:00:04]}  Bxe4+ {[%clk 0:00:19]} 35. Kg1 {[%clk 0:00:05]}  Qg7 {[%clk 0:00:15]} 36. Rh2 {[%clk 0:00:04]}  Qxg6 {[%clk 0:00:14]} 37. Qh8+ {[%clk 0:00:05]}  Bxh8 {[%clk 0:00:14]} 0-1


[Site "https://www.chess.com"]

[Event "Titled Tuesday Blitz June 15 2021"]
[White "Manafov, Vugar"]
[Black "Vignesh, N R"]
[WhiteFideId "13410814"]
[BlackFideId "25012215"]
[WhiteElo "2274"]
[BlackElo "2401"]
[Result "1-0"]
[Round "04"]
[TimeControl "180+1"]
[Date "2021.06.15"]
[WhiteClock "0:00:10"]
[BlackClock "0:00:04"]

1. Nf3 {[%clk 0:02:59]}  Nf6 {[%clk 0:02:58]} 2. g3 {[%clk 0:03:00]}  g6 {[%clk 0:02:57]} 3. Bg2 {[%clk 0:03:01]}  Bg7 {[%clk 0:02:58]} 4. O-O {[%clk 0:03:01]}  O-O {[%clk 0:02:59]} 5. d3 {[%clk 0:03:02]}  d5 {[%clk 0:02:58]} 6. Nc3 {[%clk 0:03:03]}  d4 {[%clk 0:02:58]} 7. Nb5 {[%clk 0:03:03]}  c5 {[%clk 0:02:56]} 8. e4 {[%clk 0:03:03]}  dxe3 {[%clk 0:02:50]} 9. Bxe3 {[%clk 0:03:03]}  a6 {[%clk 0:02:46]} 10. Nc3 {[%clk 0:03:01]}  Nd5 {[%clk 0:02:39]} 11. Bxc5 {[%clk 0:02:46]}  Nxc3 {[%clk 0:02:37]} 12. bxc3 {[%clk 0:02:47]}  Bxc3 {[%clk 0:02:36]} 13. Rb1 {[%clk 0:02:47]}  Nd7 {[%clk 0:02:28]} 14. Ba3 {[%clk 0:02:36]}  Re8 {[%clk 0:02:20]} 15. d4 {[%clk 0:02:35]}  Nf6 {[%clk 0:02:15]} 16. Rb3 {[%clk 0:02:25]}  Ba5 {[%clk 0:02:04]} 17. c4 {[%clk 0:02:20]}  Rb8 {[%clk 0:02:03]} 18. Ne5 {[%clk 0:02:11]}  Bc7 {[%clk 0:02:02]} 19. Re1 {[%clk 0:02:09]}  Nd7 {[%clk 0:01:47]} 20. Rd3 {[%clk 0:01:24]}  Ba5 {[%clk 0:01:41]} 21. Re2 {[%clk 0:01:20]}  Nxe5 {[%clk 0:01:41]} 22. Rxe5 {[%clk 0:01:15]}  Bf5 {[%clk 0:01:39]} 23. Rde3 {[%clk 0:01:07]}  Bb6 {[%clk 0:01:21]} 24. Rxe7 {[%clk 0:00:40]}  Rxe7 {[%clk 0:01:20]} 25. Rxe7 {[%clk 0:00:41]}  Bxd4 {[%clk 0:01:15]} 26. Bd5 {[%clk 0:00:41]}  Qb6 {[%clk 0:01:05]} 27. Rxf7 {[%clk 0:00:21]}  Bxf2+ {[%clk 0:00:48]} 28. Kg2 {[%clk 0:00:20]}  Be4+ {[%clk 0:00:38]} 29. Bxe4 {[%clk 0:00:16]}  Kxf7 {[%clk 0:00:38]} 30. Qf3+ {[%clk 0:00:09]}  Qf6 {[%clk 0:00:29]} 31. Qxf2 {[%clk 0:00:10]}  Qxf2+ {[%clk 0:00:27]} 32. Kxf2 {[%clk 0:00:11]}  b5 {[%clk 0:00:27]} 33. c5 {[%clk 0:00:11]}  Rd8 {[%clk 0:00:19]} 34. Ke3 {[%clk 0:00:11]}  Ke6 {[%clk 0:00:16]} 35. Bb7 {[%clk 0:00:09]}  a5 {[%clk 0:00:15]} 36. c6 {[%clk 0:00:09]}  b4 {[%clk 0:00:04]} 37. c7 {[%clk 0:00:10]} 1-0


[Site "https://www.chess.com"]

[Event "Titled Tuesday Blitz June 15 2021"]
[White "Nazaretyan, Tigran"]
[Black "Triapishko, Alexandr"]
[WhiteFideId "24162345"]
[BlackFideId "14122286"]
[WhiteElo "2559"]
[BlackElo "2824"]
[Result "1-0"]
[Round "04"]
[TimeControl "180+1"]
[Date "2021.06.15"]
[WhiteClock "0:00:39"]
[BlackClock "0:00:01"]

1. d4 {[%clk 0:03:00]}  Nf6 {[%clk 0:02:41]} 2. c4 {[%clk 0:02:59]}  g6 {[%clk 0:02:39]} 3. Nc3 {[%clk 0:02:59]}  Bg7 {[%clk 0:02:40]} 4. e4 {[%clk 0:02:58]}  O-O {[%clk 0:02:40]} 5. Nf3 {[%clk 0:02:59]}  c6 {[%clk 0:02:39]} 6. Bd3 {[%clk 0:02:52]}  d6 {[%clk 0:02:19]} 7. h3 {[%clk 0:02:49]}  a6 {[%clk 0:02:18]} 8. a4 {[%clk 0:02:41]}  a5 {[%clk 0:02:18]} 9. O-O {[%clk 0:02:40]}  Na6 {[%clk 0:02:17]} 10. Re1 {[%clk 0:02:36]}  Nb4 {[%clk 0:02:16]} 11. Bf1 {[%clk 0:02:35]}  e5 {[%clk 0:02:13]} 12. d5 {[%clk 0:02:22]}  Nd7 {[%clk 0:02:04]} 13. Bg5 {[%clk 0:02:21]}  f6 {[%clk 0:02:00]} 14. Be3 {[%clk 0:02:19]}  Nc5 {[%clk 0:01:58]} 15. Bxc5 {[%clk 0:01:59]}  dxc5 {[%clk 0:01:58]} 16. Qd2 {[%clk 0:01:42]}  Ra6 {[%clk 0:01:51]} 17. Rad1 {[%clk 0:01:41]}  Qc7 {[%clk 0:01:46]} 18. Qe3 {[%clk 0:01:40]}  Nc2 {[%clk 0:01:35]} 19. Qxc5 {[%clk 0:01:40]}  b6 {[%clk 0:01:34]} 20. Qxc6 {[%clk 0:01:38]}  Qxc6 {[%clk 0:01:34]} 21. dxc6 {[%clk 0:01:39]}  Nxe1 {[%clk 0:01:35]} 22. Nxe1 {[%clk 0:01:36]}  Ra7 {[%clk 0:01:23]} 23. Nb5 {[%clk 0:01:30]}  Re7 {[%clk 0:01:23]} 24. Nc2 {[%clk 0:01:29]}  Bh6 {[%clk 0:01:17]} 25. Rd6 {[%clk 0:01:20]}  f5 {[%clk 0:01:06]} 26. Bd3 {[%clk 0:01:14]}  Kg7 {[%clk 0:00:51]} 27. c7 {[%clk 0:01:13]}  Re6 {[%clk 0:00:41]} 28. Rd8 {[%clk 0:00:56]}  Ree8 {[%clk 0:00:12]} 29. Rd6 {[%clk 0:00:45]}  Rf6 {[%clk 0:00:11]} 30. Nca3 {[%clk 0:00:44]}  Bd2 {[%clk 0:00:04]} 31. Rd8 {[%clk 0:00:43]}  Rff8 {[%clk 0:00:03]} 32. Rxe8 {[%clk 0:00:43]}  Rxe8 {[%clk 0:00:03]} 33. Nd6 {[%clk 0:00:44]}  Rf8 {[%clk 0:00:03]} 34. Nab5 {[%clk 0:00:43]}  Bb4 {[%clk 0:00:03]} 35. Nxc8 {[%clk 0:00:42]}  Rxc8 {[%clk 0:00:03]} 36. exf5 {[%clk 0:00:43]}  Kf6 {[%clk 0:00:02]} 37. fxg6 {[%clk 0:00:41]}  hxg6 {[%clk 0:00:03]} 38. Be4 {[%clk 0:00:41]}  Ke6 {[%clk 0:00:02]} 39. Bf3 {[%clk 0:00:39]}  Ke7 {[%clk 0:00:01]} 40. Bg4 {[%clk 0:00:39]} 1-0


[Site "https://www.chess.com"]

[Event "Titled Tuesday Blitz June 15 2021"]
[White "Nguyen, Ngoc Truong Son"]
[Black "Khanin, Semen"]
[WhiteFideId "12401110"]
[BlackFideId "4111990"]
[WhiteElo "2596"]
[BlackElo "2521"]
[Result "0-1"]
[Round "04"]
[TimeControl "180+1"]
[Date "2021.06.15"]
[WhiteClock "0:00:07"]
[BlackClock "0:00:40"]

1. e4 {[%clk 0:02:08]}  e5 {[%clk 0:02:58]} 2. Nf3 {[%clk 0:02:07]}  Nc6 {[%clk 0:02:59]} 3. Bc4 {[%clk 0:02:07]}  Bc5 {[%clk 0:02:58]} 4. d3 {[%clk 0:02:07]}  Nf6 {[%clk 0:02:58]} 5. c3 {[%clk 0:02:05]}  d6 {[%clk 0:02:58]} 6. Bg5 {[%clk 0:02:03]}  h6 {[%clk 0:02:57]} 7. Bh4 {[%clk 0:02:04]}  g5 {[%clk 0:02:57]} 8. Bg3 {[%clk 0:02:04]}  a6 {[%clk 0:02:55]} 9. a4 {[%clk 0:02:02]}  Ba7 {[%clk 0:02:54]} 10. h3 {[%clk 0:01:50]}  Qe7 {[%clk 0:02:47]} 11. b4 {[%clk 0:01:48]}  Bd7 {[%clk 0:02:45]} 12. Nbd2 {[%clk 0:01:45]}  Nd8 {[%clk 0:02:43]} 13. b5 {[%clk 0:01:21]}  a5 {[%clk 0:02:37]} 14. Bb3 {[%clk 0:01:07]}  Ne6 {[%clk 0:02:36]} 15. Nc4 {[%clk 0:01:06]}  Nh5 {[%clk 0:02:27]} 16. Nxa5 {[%clk 0:00:46]}  Nxg3 {[%clk 0:02:25]} 17. fxg3 {[%clk 0:00:47]}  Nc5 {[%clk 0:02:22]} 18. Bd5 {[%clk 0:00:28]}  O-O-O {[%clk 0:02:20]} 19. d4 {[%clk 0:00:23]}  exd4 {[%clk 0:02:10]} 20. cxd4 {[%clk 0:00:24]}  Nxe4 {[%clk 0:02:09]} 21. Bxb7+ {[%clk 0:00:23]}  Kb8 {[%clk 0:02:09]} 22. O-O {[%clk 0:00:23]}  g4 {[%clk 0:01:50]} 23. hxg4 {[%clk 0:00:22]}  h5 {[%clk 0:01:46]} 24. Re1 {[%clk 0:00:20]}  hxg4 {[%clk 0:01:41]} 25. Bxe4 {[%clk 0:00:20]}  gxf3 {[%clk 0:01:38]} 26. Bxf3 {[%clk 0:00:17]}  Qf6 {[%clk 0:01:39]} 27. Re4 {[%clk 0:00:15]}  Rde8 {[%clk 0:01:24]} 28. Rf4 {[%clk 0:00:11]}  Qg7 {[%clk 0:01:19]} 29. Nc6+ {[%clk 0:00:08]}  Bxc6 {[%clk 0:01:18]} 30. bxc6 {[%clk 0:00:09]}  Qxg3 {[%clk 0:01:15]} 31. Rg4 {[%clk 0:00:07]}  Rh1+ {[%clk 0:00:38]} 32. Kxh1 {[%clk 0:00:07]}  Qf2 {[%clk 0:00:39]} 33. Rg5 {[%clk 0:00:06]}  Rh8+ {[%clk 0:00:39]} 34. Rh5 {[%clk 0:00:06]}  Rxh5+ {[%clk 0:00:39]} 35. Bxh5 {[%clk 0:00:07]}  Qh4+ {[%clk 0:00:39]} 36. Kg1 {[%clk 0:00:07]}  Bxd4+ {[%clk 0:00:40]} 0-1


[Site "https://www.chess.com"]

[Event "Titled Tuesday Blitz June 15 2021"]
[White "Oparin, Grigoriy"]
[Black "Kalashian, David"]
[WhiteFideId "24125890"]
[BlackFideId "13302418"]
[WhiteElo "2992"]
[BlackElo "2580"]
[Result "1/2-1/2"]
[Round "04"]
[TimeControl "180+1"]
[Date "2021.06.15"]
[WhiteClock "0:00:35"]
[BlackClock "0:00:03"]

1. b3 {[%clk 0:03:00]}  Nf6 {[%clk 0:02:57]} 2. Bb2 {[%clk 0:03:01]}  g6 {[%clk 0:02:57]} 3. Nf3 {[%clk 0:02:59]}  Bg7 {[%clk 0:02:57]} 4. c4 {[%clk 0:03:00]}  O-O {[%clk 0:02:57]} 5. g3 {[%clk 0:03:00]}  d6 {[%clk 0:02:52]} 6. Bg2 {[%clk 0:02:59]}  e5 {[%clk 0:02:51]} 7. O-O {[%clk 0:03:00]}  Nc6 {[%clk 0:02:49]} 8. d3 {[%clk 0:02:55]}  Re8 {[%clk 0:02:48]} 9. Nc3 {[%clk 0:02:54]}  Be6 {[%clk 0:02:44]} 10. a3 {[%clk 0:02:50]}  a5 {[%clk 0:02:43]} 11. e3 {[%clk 0:02:48]}  Qd7 {[%clk 0:02:40]} 12. Ng5 {[%clk 0:02:49]}  Bg4 {[%clk 0:02:37]} 13. f3 {[%clk 0:02:48]}  Bf5 {[%clk 0:02:34]} 14. g4 {[%clk 0:02:46]}  Be6 {[%clk 0:02:26]} 15. Nxe6 {[%clk 0:02:45]}  fxe6 {[%clk 0:02:24]} 16. Qe2 {[%clk 0:02:35]}  Rf8 {[%clk 0:02:23]} 17. Ne4 {[%clk 0:02:24]}  Nxe4 {[%clk 0:02:20]} 18. dxe4 {[%clk 0:02:20]}  Ne7 {[%clk 0:02:19]} 19. g5 {[%clk 0:02:17]}  Qc6 {[%clk 0:02:10]} 20. h4 {[%clk 0:02:16]}  d5 {[%clk 0:01:47]} 21. cxd5 {[%clk 0:02:05]}  exd5 {[%clk 0:01:47]} 22. Rac1 {[%clk 0:02:06]}  Qb6 {[%clk 0:01:46]} 23. exd5 {[%clk 0:02:07]}  Nxd5 {[%clk 0:01:44]} 24. Rfe1 {[%clk 0:02:00]}  Qxb3 {[%clk 0:01:24]} 25. Rb1 {[%clk 0:01:52]}  Qa4 {[%clk 0:01:14]} 26. h5 {[%clk 0:01:36]}  gxh5 {[%clk 0:00:49]} 27. f4 {[%clk 0:01:35]}  c6 {[%clk 0:00:48]} 28. f5 {[%clk 0:01:36]}  Rxf5 {[%clk 0:00:42]} 29. e4 {[%clk 0:01:36]}  Nf4 {[%clk 0:00:40]} 30. exf5 {[%clk 0:01:33]}  Nxe2+ {[%clk 0:00:38]} 31. Rxe2 {[%clk 0:01:34]}  Qg4 {[%clk 0:00:35]} 32. Rf2 {[%clk 0:01:32]}  Qxg5 {[%clk 0:00:34]} 33. Re1 {[%clk 0:01:32]}  Bf6 {[%clk 0:00:30]} 34. Bc1 {[%clk 0:01:31]}  Qg7 {[%clk 0:00:28]} 35. Kh1 {[%clk 0:01:31]}  Kh8 {[%clk 0:00:27]} 36. Rg1 {[%clk 0:01:30]}  Qg3 {[%clk 0:00:25]} 37. Rf3 {[%clk 0:01:29]}  Qg4 {[%clk 0:00:20]} 38. Rh3 {[%clk 0:01:28]}  Rg8 {[%clk 0:00:19]} 39. Be3 {[%clk 0:01:26]}  Qe2 {[%clk 0:00:17]} 40. Bh6 {[%clk 0:01:22]}  e4 {[%clk 0:00:17]} 41. Re3 {[%clk 0:01:12]}  Qf2 {[%clk 0:00:13]} 42. Rxe4 {[%clk 0:01:10]}  Bd4 {[%clk 0:00:13]} 43. Rxd4 {[%clk 0:00:58]}  Qxd4 {[%clk 0:00:12]} 44. Rf1 {[%clk 0:00:56]}  Qg4 {[%clk 0:00:07]} 45. Rf2 {[%clk 0:00:52]}  Qd1+ {[%clk 0:00:06]} 46. Kh2 {[%clk 0:00:51]}  Qd6+ {[%clk 0:00:06]} 47. Bf4 {[%clk 0:00:51]}  Qd4 {[%clk 0:00:07]} 48. Rf3 {[%clk 0:00:38]}  Qf6 {[%clk 0:00:05]} 49. Bd2 {[%clk 0:00:35]}  Qd6+ {[%clk 0:00:02]} 50. Bf4 {[%clk 0:00:35]}  Qf6 {[%clk 0:00:02]} 51. Bd2 {[%clk 0:00:35]}  Qd6+ {[%clk 0:00:03]} 52. Bf4 {[%clk 0:00:35]}  Qf6 {[%clk 0:00:03]} 1/2-1/2


[Site "https://www.chess.com"]